{"text_format":"1","workbook":"xlsx","n_sheets":10,"sheets":["使用法","様式１申込書","様式２事業計画書A","様式２事業計画書B","様式３収支予算書","様式４名簿","様式５誓約書※要確認","様式６補助金交付申込書※要確認","会則（例）","一覧※さわらない"],"not_rendered":{"charts":0,"images":0,"macros":0,"external_links":0,"defined_names":10,"comments":0,"pivot_tables":0},"unopened":[],"bounds":{"document_bytes":16777216,"sheet_cells":100000,"rows_first":2000,"rows_last":500,"rows_between":2000,"halvings":0,"cell_chars":16384,"cell_head_chars":4096},"cells_cut":0,"cells_raw":0,"read":"whole","date_system":"1900"}

{"sheet":"使用法","index":0,"n_rows":12,"n_cols":5,"rows_kept":12,"cut":false,"hidden":false,"merged":[[0,1,0,2],[1,1,2,1],[3,1,5,1],[9,2,10,2]]}
[null,"すべてのシートの黄色部分に枠外の注釈を参考にして入力してください\nそれ以外の部分は自動的に計算または参照されます\nそれぞれのシート右側のリンクから各様式のシートにとぶことができます\n「シート内データ消去」ボタンを押すとそのシートに入力した内容が消去されますのでご注意ください"]
[null,"様式１申込書","１月～３月中の申請になると申請年月日と年度とは異なるので気をつけてください",null,"様式１申込書"]
[null,null,"連絡先は市役所から連絡する際に活用させていただきます",null,"様式２事業計画書A"]
[null,"様式２事業計画書A","３．実施場所の小学校区はプルダウンメニューから選んでください　校区の異なる２か所で開催の場合は右の欄も記入して下さい",null,"様式２事業計画書B"]
[null,null,"４．準備食数（区分と食数）の区分はプルダウンメニューから選んでください　ここでは「子ども」は中学生以下をさします",null,"様式３収支予算書"]
[null,null,"９．利用者等からの問い合わせ先（市ホームページなど公開用）は一般に公開されます",null,"様式４名簿"]
[null,"様式２事業計画書B","初期経費　充実経費　の項目は枠外の黄色の部分でプルダウンメニューから選んでください",null,"様式５誓約書"]
[null,"様式３収支予算書","市補助金の金額は「事業計画書ABシート」から自動的に計算されて表示されます",null,"様式６補助金交付申込書"]
[null,"様式４名簿","代表、会計、会計監査は必ずおいてください"]
[null,"様式５誓約書","必要事項はこれまでのシートから参照されて表示されますが、内容を必ずご確認ください"]
[null,"様式６補助金交付申込書"]
[null,"会則（例）","会則の例をしめしてありますので、参考にして団体に合わせたものを作成してください"]

{"sheet":"様式１申込書","index":1,"n_rows":31,"n_cols":18,"rows_kept":31,"cut":false,"hidden":false,"merged":[[29,1,29,2],[29,3,29,7],[30,1,30,6],[28,6,28,14],[29,9,29,14],[30,8,30,14],[23,1,23,11],[24,1,24,11],[26,0,26,1],[27,1,27,14],[21,1,21,11],[22,1,22,11],[20,1,20,11],[12,0,13,14],[15,0,15,14],[10,0,10,14],[9,0,9,1],[9,3,9,12],[5,7,5,14],[6,7,6,14],[7,7,7,14],[17,0,17,14],[19,1,19,11],[5,4,5,6],[6,4,6,6],[7,4,7,6]]}
["（様式第１号）",null,null,null,null,null,null,null,null,null,null,null,null,null,null,null,null,"使用法"]
[null,null,null,null,null,null,null,null,"令和",null,"年",null,"月",null,"日",null,null,"様式１申込書"]
[null,null,null,null,null,null,null,null,null,null,null,null,null,null,null,null,null,"様式２事業計画書A"]
["枚　方　市　長",null,null,null,null,null,null,null,null,null,null,null,null,null,null,null,null,"様式２事業計画書B"]
[null,null,null,null,null,null,null,null,null,null,null,null,null,null,null,null,null,"様式３収支予算書"]
[null,null,null,null,"団　体　名　　　　　                        ",null,null,null,null,null,null,null,null,null,null,null,null,"様式４名簿"]
[null,null,null,null,"代表者住所　　　　　                        ",null,null,null,null,null,null,null,null,null,null,null,null,"様式５誓約書"]
[null,null,null,null,"代表者氏名　　　　　                      　",null,null,null,null,null,null,null,null,null,null,null,null,"様式６補助金交付申込書"]
[]
["令和",null,null,"年度 子どもの居場所づくり推進事業"]
[" 実施団体認定申込書"]
[]
[{"$f":"\"　　　令和 \"&$C$10&\" 年度、枚方市子どもの居場所づくり推進事業を実施したいので、実施\n　　団体の認定を申し込みます。\"","v":"　　　令和  年度、枚方市子どもの居場所づくり推進事業を実施したいので、実施\n　　団体の認定を申し込みます。"}]
[{"$f":"\"令和 \"&#REF!&\" 年度　子どもの居場所づくり推進事業\"","v":{"$error":"#REF!"}}]
[]
["記"]
[]
["　　　　 ◎添付書類"]
[]
[null,"事業計画書（様式第２号）"]
[null,"収支予算書（様式第３号）"]
[null,"実施団体役員名簿（様式第４号）"]
[null,"誓約書（様式第５号）"]
[null,"補助金交付申込書（様式第６号）"]
[null,"実施団体会則"]
[]
["【団体の連絡先】"]
["連絡担当者"]
["書類等送付先","（〒 ",null,"－",null,"）"]
["電話・ＦＡＸ","電話",null,null,null,null,null,null,"ＦＡＸ"]
["Ｅ－ＭＡＩＬ",null,null,null,null,null,null,"＠"]

{"sheet":"様式２事業計画書A","index":2,"n_rows":117,"n_cols":16,"rows_kept":117,"cut":false,"hidden":false,"merged":[[18,1,18,3],[64,0,66,0],[64,1,66,11],[24,2,24,6],[24,7,24,8],[18,4,18,8],[61,0,63,0],[18,9,18,10],[38,4,38,11],[25,1,25,11],[27,1,27,11],[29,1,29,11],[26,1,26,3],[30,1,30,11],[32,1,32,11],[34,1,34,11],[19,1,19,11],[20,2,20,8],[37,1,37,3],[37,4,37,7],[37,9,37,11],[31,10,31,11],[31,3,31,9],[28,2,28,3],[21,3,21,10],[55,0,57,0],[58,0,60,0],[39,0,54,0],[22,3,22,10],[23,3,23,10],[47,1,47,11],[51,1,51,11],[44,1,46,11],[48,1,50,11],[2,0,2,11],[16,1,16,3],[17,1,17,3],[14,4,14,6],[16,4,16,10],[17,4,17,10],[9,1,11,11],[7,0,11,0],[12,1,12,11],[7,2,8,11],[7,1,8,1],[15,1,15,11],[14,7,14,11],[13,3,13,10],[14,1,14,3],[1,4,1,10],[1,0,1,2],[52,1,54,11],[4,0,4,5],[4,6,4,10],[26,5,26,6],[33,3,33,9],[33,10,33,11],[35,1,35,3],[36,1,36,3],[38,1,38,3],[35,4,35,9],[36,4,36,9],[39,1,39,11],[40,1,42,11],[12,0,38,0],[67,1,69,11],[43,1,43,11],[55,1,57,11],[58,1,60,11],[61,1,63,11]]}
[null,null,null,null,null,null,null,null,null,null,null,null,null,null,null,"使用法"]
["令和",null,null,{"$f":"様式１申込書!C10","v":0},"年度 子どもの居場所づくり推進事業",null,null,null,null,null,null,null,null,null,null,"様式１申込書"]
["事業計画書",null,null,null,null,null,null,null,null,null,null,null,null,null,null,"様式２事業計画書A"]
[null,null,null,null,null,null,null,null,null,null,null,null,null,null,null,"様式２事業計画書B"]
["団体名（",null,null,null,null,null,{"$f":"様式１申込書!H6","v":0},null,null,null,null,"　）",null,null,null,"様式３収支予算書"]
[null,null,null,null,null,null,null,null,null,null,null,null,null,null,null,"様式４名簿"]
["１．事業の内容",null,null,null,null,null,null,null,null,null,null,null,null,null,null,"様式５誓約書"]
["①事業の目的",null,"　家で1人で食事をとる、夜遅くまで１人で過ごすといった環境にあるなど、\n家庭的に様々な課題のある子どもたちが、食事の提供を通じ、地域で安心して\n過ごせるための居場所づくりに取り組みます。",null,null,null,null,null,null,null,null,null,null,null,null,"様式６補助金交付申込書"]
[]
[]
[]
[]
["②取り組みの内容\n\n（次ページに続く）","１．事業の名称"]
[null,null,"（　",null,null,null,null,null,null,null,null,"）"]
[null,"２．スタッフ数　（　　　　　　　",null,null,null,null,null,"人）"]
[null,"３．実施場所"]
[null,"　利用施設名　　　　　　　　　　　　　　　　　　　　　　"]
[null,"　利用施設住所　　　　　　　　　　　　　　　　　　　　　"]
[null,"　小学校区　　　　　　　　　　　　　　　　　　"]
[null,"４．準備食数（区分と食数）"]
[null,null,"・区分　　　　　　　　　　　　　　　　　\n　　※以下のいずれかの記号を選んでください。→"]
[null,null,null,"A：実施１回の子どもへの準備食数を４０食以上の規模で運営"]
[null,null,null,"B：実施１回の子どもへの準備食数を２０食以上４０食未満の規模で運営"]
[null,null,null,"C：実施１回の子どもへの準備食数を２０食未満の規模で運営"]
[null,null,"・実施１回の子どもへの準備食数　（　　　　　",null,null,null,null,null,null,"）"]
[null,"５．利用定員（１回あたり）"]
[null,"　　（　約　　　",null,null,null,null,null,"人　）"]
[null,"６．事業開始（予定）日"]
[null,"（　",null,null,"年　　　",null,"月　　　",null,"日）"]
[null,"　※現在、同様の取り組みを既に実施されている場合は、その開始された\n　　日を記入してください。"]
[null,"７．実施日"]
[null,"（　",null,null,null,null,null,null,null,null,"）"]
[null,"８．実施時間"]
[null,"（　",null,null,null,null,null,null,null,null,"）"]
[null,"９．利用者等からの問い合わせ先（市ホームページなど公開用）"]
[null,"　　　電話："]
[null,"　　　FAX："]
[null,"　　　Eメール：",null,null,null,null,null,null,"＠"]
[null,"SNS等："]
["②取り組みの内容\n\n（前ページの続き）","１０．食材の調達方法"]
[]
[]
[]
[null,"１１．食事の内容"]
[]
[]
[]
[null,"１２．利用者負担"]
[]
[]
[]
[null,"１３．食事提供以外の取り組み"]
[]
[]
[]
["③安全管理の考え方"]
[]
[]
["④情報発信の考え方"]
[]
[]
["⑤事業の継続に関する\n　　　 考え方"]
[]
[]
["⑥団体の活動実績"]
[]
[]
[]
["⑦自由記入"]
["（その他提案等があれば）"]
[]
[]
[]
["枚　方"]
["枚方第二"]
["蹉　跎"]
["香　里"]
["開　成"]
["五　常"]
["春　日"]
["桜　丘"]
["山　田"]
["明　倫"]
["殿山第一"]
["殿山第二"]
["樟　葉"]
["津　田"]
["菅　原"]
["氷　室"]
["山之上"]
["交　北"]
["香　陽"]
["招　提"]
["中　宮"]
["小　倉"]
["樟葉南"]
["磯　島"]
["蹉跎西"]
["樟葉西"]
["田口山"]
["西牧野"]
["川　越"]
["蹉跎東"]
["桜丘北"]
["津田南"]
["樟葉北"]
["船　橋"]
["菅原東"]
["山田東"]
["藤　阪"]
["平　野"]
["長　尾"]
["東香里"]
["伊加賀"]
["禁　野"]
["菅原・津田"]
["枚方・牧野"]

{"sheet":"様式２事業計画書B","index":3,"n_rows":76,"n_cols":12,"rows_kept":76,"cut":false,"hidden":false,"merged":[[61,6,61,12],[51,0,51,4],[53,3,53,4],[55,0,55,4],[58,0,59,4],[61,2,61,3],[3,0,5,0],[3,4,5,4],[47,2,47,3],[48,2,48,3],[35,2,35,3],[36,2,36,3],[16,2,16,3],[6,0,6,4],[7,0,9,0],[7,4,9,4],[10,0,10,4],[11,0,13,0],[11,4,13,4],[14,0,14,4],[15,0,17,0],[15,4,17,4],[18,0,18,4],[19,0,21,0],[19,4,21,4],[15,2,15,3],[19,2,19,3],[20,2,20,3],[31,2,31,3],[32,2,32,3],[22,0,22,4],[23,0,25,0],[23,4,25,4],[26,0,26,4],[27,0,29,0],[27,4,29,4],[23,2,23,3],[24,2,24,3],[27,2,27,3],[28,2,28,3],[46,0,46,4],[39,2,39,3],[2,2,2,3],[3,2,3,3],[4,2,4,3],[7,2,7,3],[8,2,8,3],[40,2,40,3],[43,2,43,3],[44,2,44,3],[30,0,30,4],[31,0,33,0],[31,4,33,4],[34,0,34,4],[35,0,37,0],[35,4,37,4],[39,0,41,0],[39,4,41,4],[42,0,42,4],[43,0,45,0],[43,4,45,4],[1,0,1,4],[71,6,71,12],[75,6,75,12],[73,0,73,4],[75,2,75,3],[68,0,69,4],[71,2,71,3],[3,6,5,12],[63,7,63,12],[68,7,68,12],[38,0,38,4],[65,2,65,3],[47,0,49,0],[47,4,49,4],[11,2,11,3],[12,2,12,3]]}
[]
["２．実施のスケジュール"]
[null,null,"実施予定回数",null,"実施の概要"]
["４月",null,"実施予定回数"]
[]
[null,null,null,"回"]
["         ",null,null,null,null,null,null,null,null,null,null,"使用法"]
["５月",null,"実施予定回数",null,null,null,null,null,null,null,null,"様式１申込書"]
[null,null,null,null,null,null,null,null,null,null,null,"様式２事業計画書A"]
[null,null,null,"回",null,null,null,null,null,null,null,"様式２事業計画書B"]
["         ",null,null,null,null,null,null,null,null,null,null,"様式３収支予算書"]
["６月",null,"実施予定回数",null,null,null,null,null,null,null,null,"様式４名簿"]
[null,null,null,null,null,null,null,null,null,null,null,"様式５誓約書"]
[null,null,null,"回",null,null,null,null,null,null,null,"様式６補助金交付申込書"]
["         "]
["７月",null,"実施予定回数"]
[]
[null,null,null,"回"]
[]
["８月",null,"実施予定回数"]
[]
[null,null,null,"回"]
["         "]
["９月",null,"実施予定回数"]
[]
[null,null,null,"回"]
["         "]
["１０月",null,"実施予定回数"]
[]
[null,null,null,"回"]
["         "]
["１１月",null,"実施予定回数"]
[]
[null,null,null,"回"]
["         "]
["１2月",null,"実施予定回数"]
[]
[null,null,null,"回"]
["         "]
["１月",null,"実施予定回数"]
[]
[null,null,null,"回"]
["         "]
["２月",null,"実施予定回数"]
[]
[null,null,null,"回"]
["         "]
["３月",null,"実施予定回数"]
[]
[null,null,null,"回"]
[]
["実施予定回数（補助対象となる回数：週１回が上限）の年度合計"]
[]
[null,null,{"$f":"+C6+C10+C14+C18+C22+C26+C30+C34+C38+C42+C46+C50","v":0},"回・・・・①"]
["（様式第２号）"]
["３．計画に基づく申請補助額"]
[]
["運営経費"]
["※上記①の回数に、準備食数の区分が「40食以上」の場合は１０，０００円、\n「20食～39食」の場合は７，０００円、「10食～19食」の場合は、５，５００円を乗じた金額"]
[]
[]
["金",null,{"$f":"IFERROR(_xlfn.IFS(様式２事業計画書A!J21=\"A\",10000,様式２事業計画書A!J21=\"B\",7000,様式２事業計画書A!J21=\"C\",5500)*C54,\"\")","v":""},null,"円　・・・・・　（１）"]
[]
["初期経費（新たに補助金の交付を受ける団体のみ）"]
[]
["金",null,{"$f":"IF(G64=\"あり\",100000,0)","v":0},null,"円　・・・・・　（２）"]
[]
["充実経費（希望する団体のみ）"]
["※「なし（０円）」または、上記①の回数に、「１,０００円」「２,０００円」「３,０００円」\n「４,０００円」「５,０００円」までの１,０００円きざみの希望金額を乗じた金額"]
[]
[]
["金",null,{"$f":"IFERROR(G69*C54,\"0\")","v":0},null,"円　・・・・・　（3）"]
[]
["合計　・・・・・・・・・・　（１）＋（２）＋（３）"]
[]
["金",null,{"$f":"IFERROR(+C62+C66+C72,\"\")","v":""},null,"円"]

{"sheet":"様式３収支予算書","index":4,"n_rows":28,"n_cols":16,"rows_kept":28,"cut":false,"hidden":false,"merged":[[27,1,27,2],[27,3,27,4],[27,5,27,8],[25,1,25,2],[25,3,25,4],[25,5,25,8],[26,1,26,2],[26,3,26,4],[26,5,26,8],[23,1,23,2],[23,3,23,4],[23,5,23,8],[24,1,24,2],[24,3,24,4],[24,5,24,8],[21,1,21,2],[21,3,21,4],[21,5,21,8],[22,1,22,2],[22,3,22,4],[22,5,22,8],[19,1,19,2],[19,3,19,4],[19,5,19,8],[20,1,20,2],[20,3,20,4],[20,5,20,8],[17,1,17,2],[17,3,17,4],[17,5,17,8],[18,1,18,2],[18,3,18,4],[18,5,18,8],[16,1,16,2],[16,3,16,4],[16,5,16,8],[10,1,10,3],[10,4,10,6],[10,7,10,8],[11,1,11,3],[11,4,11,6],[11,7,11,8],[13,1,13,7],[14,1,14,7],[15,1,15,2],[15,3,15,4],[15,5,15,8],[8,1,8,3],[8,4,8,6],[8,7,8,8],[9,1,9,3],[9,4,9,6],[9,7,9,8],[7,1,7,3],[7,4,7,6],[7,7,7,8],[1,1,1,8],[2,1,2,7],[3,4,3,7],[4,1,4,2],[6,1,6,7]]}
[null,"（様式第３号）",null,null,null,null,null,null,null,null,null,null,null,null,null,"使用法"]
[null,{"$f":"\"令和 \"&様式１申込書!$C$10&\" 年度  子どもの居場所づくり推進事業\"","v":"令和  年度  子どもの居場所づくり推進事業"},null,null,null,null,null,null,null,null,null,null,null,null,null,"様式１申込書"]
[null,"　収　支　予　算　書",null,null,null,null,null,null,null,null,null,null,null,null,null,"様式２事業計画書A"]
[null,null,null,"団体名(",{"$f":"様式１申込書!H6","v":0},null,null,null,")",null,null,null,null,null,null,"様式２事業計画書B"]
[null,null,null,null,null,null,null,null,null,null,null,null,null,null,null,"様式３収支予算書"]
[null,null,null,null,null,null,null,null,null,null,null,null,null,null,null,"様式４名簿"]
[null,"１．収　入　　　　　　　　　　　　　",null,null,null,null,null,null,null,null,null,null,null,null,null,"様式５誓約書"]
[null,"項　目",null,null,"予算額",null,null,"内　訳",null,null,null,null,null,null,null,"様式６補助金交付申込書"]
[null,"市補助金",null,null,{"$f":"様式２事業計画書B!C76","v":""}]
[null,"参加費（高校生以上の参加者から徴収する金額）"]
[null,"団体自己資金など"]
[null,"合　計",null,null,{"$f":"SUM(E9:G11)","v":0}]
[]
[]
[null,"２．支　出"]
[null,null,null,"予算額",null,"内　訳"]
[null,"食材購入費"]
[null,"消耗品購入費"]
[null,"備品購入費"]
[null,"謝礼金"]
[null,"使用料・賃借料"]
[null,"光熱水費"]
[null,"保険料"]
[null,"印刷費"]
[null,"通信費"]
[null,"施設の改修費・修繕費"]
[null,"食品衛生責任者となるための\n講習の受講料"]
[null,"合　計",null,{"$f":"SUM(D17:E27)","v":0},null,{"$f":"_xlfn.IFS($E$12-$D$28<0,\"支出が\"&$D$28-$E$12&\"円多いです\",$E$12-$D$28>0,\"収入が\"&$E$12-$D$28&\"円多いです\",$E$12-$D$28=0,\"\")","v":""},{"$f":"_xlfn.IFS($E$12-$D$28<0,\"支出が\"&$D$28-$E$12&\"多いです\",F11-$D$28>0,\"収入が\"&$E$12-$D$28&\"多いです\",$E$12-$D$28=0,\"\")","v":""},{"$f":"_xlfn.IFS($E$12-$D$28<0,\"支出が\"&$D$28-$E$12&\"多いです\",G11-$D$28>0,\"収入が\"&$E$12-$D$28&\"多いです\",$E$12-$D$28=0,\"\")","v":""},{"$f":"_xlfn.IFS($E$12-$D$28<0,\"支出が\"&$D$28-$E$12&\"多いです\",H11-$D$28>0,\"収入が\"&$E$12-$D$28&\"多いです\",$E$12-$D$28=0,\"\")","v":""}]

{"sheet":"様式４名簿","index":5,"n_rows":23,"n_cols":12,"rows_kept":23,"cut":false,"hidden":false,"merged":[[18,0,18,1],[11,2,11,6],[12,2,12,6],[11,7,11,8],[12,7,12,8],[14,7,14,8],[15,7,15,8],[13,7,13,8],[21,3,21,6],[5,2,5,6],[6,2,6,6],[7,2,7,6],[8,2,8,6],[9,2,9,6],[10,2,10,6],[19,2,19,6],[20,5,20,6],[22,4,22,5],[20,0,22,0],[20,1,22,1],[1,0,1,7],[2,0,2,7],[4,3,4,7],[16,0,16,8],[13,2,13,6],[14,2,14,6],[15,2,15,6],[5,7,5,8],[6,7,6,8],[7,7,7,8],[8,7,8,8],[9,7,9,8],[10,7,10,8]]}
["（様式第４号）",null,null,null,null,null,null,null,null,null,null,"使用法"]
["枚方市子どもの居場所づくり推進事業",null,null,null,null,null,null,null,null,null,null,"様式１申込書"]
["実施団体役員名簿",null,null,null,null,null,null,null,null,null,null,"様式２事業計画書A"]
[null,null,null,null,null,null,null,null,null,null,null,"様式２事業計画書B"]
[null,"団体名（",null,{"$f":"様式１申込書!H6","v":0},null,null,null,null,"）",null,null,"様式３収支予算書"]
["氏名","住所","電話番号",null,null,null,null,"役職 ※",null,null,null,"様式４名簿"]
[null,null,null,null,null,null,null,"代表",null,null,null,"様式５誓約書"]
[null,null,null,null,null,null,null,"会計",null,null,null,"様式６補助金交付申込書"]
[null,null,null,null,null,null,null,"会計監査"]
[]
[]
[]
[]
[]
[]
[]
["※役職は代表、会計、会計監査を必ず置くこと。ただし会計と会計監査を兼ねることは不可。"]
[]
["食品衛生責任者"]
["氏名","電話番号","資格等（該当項目に〇）"]
[null,null,null,"栄養士",null,"調理師"]
[null,null,null,"食品衛生責任者養成講習会受講者"]
[null,null,null,"その他（",null,null,"）"]

{"sheet":"様式５誓約書※要確認","index":6,"n_rows":24,"n_cols":17,"rows_kept":24,"cut":false,"hidden":false,"merged":[[1,0,1,13],[12,0,13,13],[16,0,16,13],[21,0,21,13],[23,0,23,13],[19,0,19,13],[6,7,6,13],[7,7,7,13],[8,7,8,13]]}
["（様式第５号）",null,null,null,null,null,null,null,null,null,null,null,null,null,null,null,"使用法"]
["誓　約　書",null,null,null,null,null,null,null,null,null,null,null,null,null,null,null,"様式１申込書"]
[null,null,null,null,null,null,null,"令和",{"$f":"様式１申込書!J2","v":0},"年",{"$f":"様式１申込書!L2","v":0},"月",{"$f":"様式１申込書!N2","v":0},"日",null,null,"様式２事業計画書A"]
[null,null,null,null,null,null,null,null,null,null,null,null,null,null,null,null,"様式２事業計画書B"]
["枚　方　市　長",null,null,null,null,null,null,null,null,null,null,null,null,null,null,null,"様式３収支予算書"]
[null,null,null,null,null,null,null,null,null,null,null,null,null,null,null,null,"様式４名簿"]
[null,null,null,null,null,null,"団　体　名　　　　　                        ",{"$f":"様式１申込書!H6","v":0},null,null,null,null,null,null,null,null,"様式５誓約書"]
[null,null,null,null,null,null,"代表者住所　　　　　                        ",{"$f":"様式１申込書!H7","v":0},null,null,null,null,null,null,null,null,"様式６補助金交付申込書"]
[null,null,null,null,null,null,"代表者氏名　　　　　                      　",{"$f":"様式１申込書!H8","v":0}]
[]
[]
[]
[{"$f":"\"　　私は、令和 \"&様式１申込書!$C$10&\" 年度枚方市子どもの居場所づくり推進事業補助金の実施団体の\n　認定を受けるにあたり、下記の事項に相違ないことを誓約します。\"","v":"　　私は、令和  年度枚方市子どもの居場所づくり推進事業補助金の実施団体の\n　認定を受けるにあたり、下記の事項に相違ないことを誓約します。"},{"$f":"\"私は、令和\"&様式１申込書!$C$10&\"年度枚方市子どもの居場所づくり推進事業補助金の実施団体の認\n定を受けるにあたり、下記の事項に相違ないことを誓約します。\"","v":"私は、令和年度枚方市子どもの居場所づくり推進事業補助金の実施団体の認\n定を受けるにあたり、下記の事項に相違ないことを誓約します。"},{"$f":"\"私は、令和\"&様式１申込書!$C$10&\"年度枚方市子どもの居場所づくり推進事業補助金の実施団体の認\n定を受けるにあたり、下記の事項に相違ないことを誓約します。\"","v":"私は、令和年度枚方市子どもの居場所づくり推進事業補助金の実施団体の認\n定を受けるにあたり、下記の事項に相違ないことを誓約します。"},{"$f":"\"私は、令和\"&様式１申込書!$C$10&\"年度枚方市子どもの居場所づくり推進事業補助金の実施団体の認\n定を受けるにあたり、下記の事項に相違ないことを誓約します。\"","v":"私は、令和年度枚方市子どもの居場所づくり推進事業補助金の実施団体の認\n定を受けるにあたり、下記の事項に相違ないことを誓約します。"},{"$f":"\"私は、令和\"&様式１申込書!$C$10&\"年度枚方市子どもの居場所づくり推進事業補助金の実施団体の認\n定を受けるにあたり、下記の事項に相違ないことを誓約します。\"","v":"私は、令和年度枚方市子どもの居場所づくり推進事業補助金の実施団体の認\n定を受けるにあたり、下記の事項に相違ないことを誓約します。"},{"$f":"\"私は、令和\"&様式１申込書!$C$10&\"年度枚方市子どもの居場所づくり推進事業補助金の実施団体の認\n定を受けるにあたり、下記の事項に相違ないことを誓約します。\"","v":"私は、令和年度枚方市子どもの居場所づくり推進事業補助金の実施団体の認\n定を受けるにあたり、下記の事項に相違ないことを誓約します。"},{"$f":"\"私は、令和\"&様式１申込書!$C$10&\"年度枚方市子どもの居場所づくり推進事業補助金の実施団体の認\n定を受けるにあたり、下記の事項に相違ないことを誓約します。\"","v":"私は、令和年度枚方市子どもの居場所づくり推進事業補助金の実施団体の認\n定を受けるにあたり、下記の事項に相違ないことを誓約します。"},{"$f":"\"私は、令和\"&様式１申込書!$C$10&\"年度枚方市子どもの居場所づくり推進事業補助金の実施団体の認\n定を受けるにあたり、下記の事項に相違ないことを誓約します。\"","v":"私は、令和年度枚方市子どもの居場所づくり推進事業補助金の実施団体の認\n定を受けるにあたり、下記の事項に相違ないことを誓約します。"},{"$f":"\"私は、令和\"&様式１申込書!$C$10&\"年度枚方市子どもの居場所づくり推進事業補助金の実施団体の認\n定を受けるにあたり、下記の事項に相違ないことを誓約します。\"","v":"私は、令和年度枚方市子どもの居場所づくり推進事業補助金の実施団体の認\n定を受けるにあたり、下記の事項に相違ないことを誓約します。"},{"$f":"\"私は、令和\"&様式１申込書!$C$10&\"年度枚方市子どもの居場所づくり推進事業補助金の実施団体の認\n定を受けるにあたり、下記の事項に相違ないことを誓約します。\"","v":"私は、令和年度枚方市子どもの居場所づくり推進事業補助金の実施団体の認\n定を受けるにあたり、下記の事項に相違ないことを誓約します。"},{"$f":"\"私は、令和\"&様式１申込書!$C$10&\"年度枚方市子どもの居場所づくり推進事業補助金の実施団体の認\n定を受けるにあたり、下記の事項に相違ないことを誓約します。\"","v":"私は、令和年度枚方市子どもの居場所づくり推進事業補助金の実施団体の認\n定を受けるにあたり、下記の事項に相違ないことを誓約します。"},{"$f":"\"私は、令和\"&様式１申込書!$C$10&\"年度枚方市子どもの居場所づくり推進事業補助金の実施団体の認\n定を受けるにあたり、下記の事項に相違ないことを誓約します。\"","v":"私は、令和年度枚方市子どもの居場所づくり推進事業補助金の実施団体の認\n定を受けるにあたり、下記の事項に相違ないことを誓約します。"},{"$f":"\"私は、令和\"&様式１申込書!$C$10&\"年度枚方市子どもの居場所づくり推進事業補助金の実施団体の認\n定を受けるにあたり、下記の事項に相違ないことを誓約します。\"","v":"私は、令和年度枚方市子どもの居場所づくり推進事業補助金の実施団体の認\n定を受けるにあたり、下記の事項に相違ないことを誓約します。"},{"$f":"\"私は、令和\"&様式１申込書!$C$10&\"年度枚方市子どもの居場所づくり推進事業補助金の実施団体の認\n定を受けるにあたり、下記の事項に相違ないことを誓約します。\"","v":"私は、令和年度枚方市子どもの居場所づくり推進事業補助金の実施団体の認\n定を受けるにあたり、下記の事項に相違ないことを誓約します。"}]
[{"$f":"\"私は、令和\"&様式１申込書!$C$10&\"年度枚方市子どもの居場所づくり推進事業補助金の実施団体の認\n定を受けるにあたり、下記の事項に相違ないことを誓約します。\"","v":"私は、令和年度枚方市子どもの居場所づくり推進事業補助金の実施団体の認\n定を受けるにあたり、下記の事項に相違ないことを誓約します。"},{"$f":"\"私は、令和\"&様式１申込書!$C$10&\"年度枚方市子どもの居場所づくり推進事業補助金の実施団体の認\n定を受けるにあたり、下記の事項に相違ないことを誓約します。\"","v":"私は、令和年度枚方市子どもの居場所づくり推進事業補助金の実施団体の認\n定を受けるにあたり、下記の事項に相違ないことを誓約します。"},{"$f":"\"私は、令和\"&様式１申込書!$C$10&\"年度枚方市子どもの居場所づくり推進事業補助金の実施団体の認\n定を受けるにあたり、下記の事項に相違ないことを誓約します。\"","v":"私は、令和年度枚方市子どもの居場所づくり推進事業補助金の実施団体の認\n定を受けるにあたり、下記の事項に相違ないことを誓約します。"},{"$f":"\"私は、令和\"&様式１申込書!$C$10&\"年度枚方市子どもの居場所づくり推進事業補助金の実施団体の認\n定を受けるにあたり、下記の事項に相違ないことを誓約します。\"","v":"私は、令和年度枚方市子どもの居場所づくり推進事業補助金の実施団体の認\n定を受けるにあたり、下記の事項に相違ないことを誓約します。"},{"$f":"\"私は、令和\"&様式１申込書!$C$10&\"年度枚方市子どもの居場所づくり推進事業補助金の実施団体の認\n定を受けるにあたり、下記の事項に相違ないことを誓約します。\"","v":"私は、令和年度枚方市子どもの居場所づくり推進事業補助金の実施団体の認\n定を受けるにあたり、下記の事項に相違ないことを誓約します。"},{"$f":"\"私は、令和\"&様式１申込書!$C$10&\"年度枚方市子どもの居場所づくり推進事業補助金の実施団体の認\n定を受けるにあたり、下記の事項に相違ないことを誓約します。\"","v":"私は、令和年度枚方市子どもの居場所づくり推進事業補助金の実施団体の認\n定を受けるにあたり、下記の事項に相違ないことを誓約します。"},{"$f":"\"私は、令和\"&様式１申込書!$C$10&\"年度枚方市子どもの居場所づくり推進事業補助金の実施団体の認\n定を受けるにあたり、下記の事項に相違ないことを誓約します。\"","v":"私は、令和年度枚方市子どもの居場所づくり推進事業補助金の実施団体の認\n定を受けるにあたり、下記の事項に相違ないことを誓約します。"},{"$f":"\"私は、令和\"&様式１申込書!$C$10&\"年度枚方市子どもの居場所づくり推進事業補助金の実施団体の認\n定を受けるにあたり、下記の事項に相違ないことを誓約します。\"","v":"私は、令和年度枚方市子どもの居場所づくり推進事業補助金の実施団体の認\n定を受けるにあたり、下記の事項に相違ないことを誓約します。"},{"$f":"\"私は、令和\"&様式１申込書!$C$10&\"年度枚方市子どもの居場所づくり推進事業補助金の実施団体の認\n定を受けるにあたり、下記の事項に相違ないことを誓約します。\"","v":"私は、令和年度枚方市子どもの居場所づくり推進事業補助金の実施団体の認\n定を受けるにあたり、下記の事項に相違ないことを誓約します。"},{"$f":"\"私は、令和\"&様式１申込書!$C$10&\"年度枚方市子どもの居場所づくり推進事業補助金の実施団体の認\n定を受けるにあたり、下記の事項に相違ないことを誓約します。\"","v":"私は、令和年度枚方市子どもの居場所づくり推進事業補助金の実施団体の認\n定を受けるにあたり、下記の事項に相違ないことを誓約します。"},{"$f":"\"私は、令和\"&様式１申込書!$C$10&\"年度枚方市子どもの居場所づくり推進事業補助金の実施団体の認\n定を受けるにあたり、下記の事項に相違ないことを誓約します。\"","v":"私は、令和年度枚方市子どもの居場所づくり推進事業補助金の実施団体の認\n定を受けるにあたり、下記の事項に相違ないことを誓約します。"},{"$f":"\"私は、令和\"&様式１申込書!$C$10&\"年度枚方市子どもの居場所づくり推進事業補助金の実施団体の認\n定を受けるにあたり、下記の事項に相違ないことを誓約します。\"","v":"私は、令和年度枚方市子どもの居場所づくり推進事業補助金の実施団体の認\n定を受けるにあたり、下記の事項に相違ないことを誓約します。"},{"$f":"\"私は、令和\"&様式１申込書!$C$10&\"年度枚方市子どもの居場所づくり推進事業補助金の実施団体の認\n定を受けるにあたり、下記の事項に相違ないことを誓約します。\"","v":"私は、令和年度枚方市子どもの居場所づくり推進事業補助金の実施団体の認\n定を受けるにあたり、下記の事項に相違ないことを誓約します。"},{"$f":"\"私は、令和\"&様式１申込書!$C$10&\"年度枚方市子どもの居場所づくり推進事業補助金の実施団体の認\n定を受けるにあたり、下記の事項に相違ないことを誓約します。\"","v":"私は、令和年度枚方市子どもの居場所づくり推進事業補助金の実施団体の認\n定を受けるにあたり、下記の事項に相違ないことを誓約します。"}]
[]
[]
["記"]
[]
[]
["　　　　　１　主に政治活動又は宗教活動を行うことを目的としていないこと。"]
[]
["　　　　　２　活動内容が公の秩序又は善良の風俗に反するものでないこと。"]
[]
["　　　　　３　暴力団又は暴力団と密接な関係のある団体でないこと。"]

{"sheet":"様式６補助金交付申込書※要確認","index":7,"n_rows":28,"n_cols":17,"rows_kept":28,"cut":false,"hidden":false,"merged":[[25,0,25,1],[25,3,25,6],[27,2,27,5],[19,0,19,13],[9,0,9,13],[10,0,10,13],[21,3,21,6],[21,0,21,1],[23,0,23,1],[23,3,23,6],[5,7,5,13],[6,7,6,13],[7,7,7,13],[12,0,13,13],[16,0,16,13]]}
["（様式第６号）",null,null,null,null,null,null,null,null,null,null,null,null,null,null,null,"使用法"]
[null,null,null,null,null,null,null,"令和",{"$f":"様式１申込書!J2","v":0},"年",{"$f":"様式１申込書!L2","v":0},"月",{"$f":"様式１申込書!N2","v":0},"日",null,null,"様式１申込書"]
[null,null,null,null,null,null,null,null,null,null,null,null,null,null,null,null,"様式２事業計画書A"]
["枚　方　市　長",null,null,null,null,null,null,null,null,null,null,null,null,null,null,null,"様式２事業計画書B"]
[null,null,null,null,null,null,null,null,null,null,null,null,null,null,null,null,"様式３収支予算書"]
[null,null,null,null,null,null,"団　体　名　　　　　                        ",{"$f":"様式１申込書!H6","v":0},null,null,null,null,null,null,null,null,"様式４名簿"]
[null,null,null,null,null,null,"代表者住所　　　　　                        ",{"$f":"様式１申込書!H7","v":0},null,null,null,null,null,null,null,null,"様式５誓約書"]
[null,null,null,null,null,null,"代表者氏名　　　　　                      　",{"$f":"様式１申込書!H8","v":0},null,null,null,null,null,null,null,null,"様式６補助金交付申込書"]
[]
[{"$f":"\"令和 \"&様式１申込書!$C$10&\" 年度　子どもの居場所づくり推進事業\"","v":"令和  年度　子どもの居場所づくり推進事業"},{"$f":"\"令和 \"&様式１申込書!$C$10&\" 年度　子どもの居場所づくり推進事業\"","v":"令和  年度　子どもの居場所づくり推進事業"},{"$f":"\"令和 \"&様式１申込書!$C$10&\" 年度　子どもの居場所づくり推進事業\"","v":"令和  年度　子どもの居場所づくり推進事業"},{"$f":"\"令和 \"&様式１申込書!$C$10&\" 年度　子どもの居場所づくり推進事業\"","v":"令和  年度　子どもの居場所づくり推進事業"},{"$f":"\"令和 \"&様式１申込書!$C$10&\" 年度　子どもの居場所づくり推進事業\"","v":"令和  年度　子どもの居場所づくり推進事業"},{"$f":"\"令和 \"&様式１申込書!$C$10&\" 年度　子どもの居場所づくり推進事業\"","v":"令和  年度　子どもの居場所づくり推進事業"},{"$f":"\"令和 \"&様式１申込書!$C$10&\" 年度　子どもの居場所づくり推進事業\"","v":"令和  年度　子どもの居場所づくり推進事業"},{"$f":"\"令和 \"&様式１申込書!$C$10&\" 年度　子どもの居場所づくり推進事業\"","v":"令和  年度　子どもの居場所づくり推進事業"},{"$f":"\"令和 \"&様式１申込書!$C$10&\" 年度　子どもの居場所づくり推進事業\"","v":"令和  年度　子どもの居場所づくり推進事業"},{"$f":"\"令和 \"&様式１申込書!$C$10&\" 年度　子どもの居場所づくり推進事業\"","v":"令和  年度　子どもの居場所づくり推進事業"},{"$f":"\"令和 \"&様式１申込書!$C$10&\" 年度　子どもの居場所づくり推進事業\"","v":"令和  年度　子どもの居場所づくり推進事業"},{"$f":"\"令和 \"&様式１申込書!$C$10&\" 年度　子どもの居場所づくり推進事業\"","v":"令和  年度　子どもの居場所づくり推進事業"},{"$f":"\"令和 \"&様式１申込書!$C$10&\" 年度　子どもの居場所づくり推進事業\"","v":"令和  年度　子どもの居場所づくり推進事業"},{"$f":"\"令和 \"&様式１申込書!$C$10&\" 年度　子どもの居場所づくり推進事業\"","v":"令和  年度　子どもの居場所づくり推進事業"}]
["補助金交付申込書"]
[]
["　枚方市子どもの居場所づくり推進事業補助金交付要綱に基づく補助金の交付\nを受けたいので、枚方市補助金等交付規則に基づき、交付を申し込みます。"]
[]
[]
[]
["記"]
[]
[]
["　◎申請補助額"]
[]
["運営経費",null,"金",{"$f":"様式２事業計画書B!C62","v":""},null,null,null,"円"]
[]
["初期経費",null,"金",{"$f":"様式２事業計画書B!C66","v":0},null,null,null,"円（新たに補助金の交付を受ける団体のみ）"]
[]
["充実経費",null,"金",{"$f":"様式２事業計画書B!C72","v":0},null,null,null,"円"]
[]
["合計額","金",{"$f":"様式２事業計画書B!C76","v":""},null,null,null,"円"]

{"sheet":"会則（例）","index":8,"n_rows":52,"n_cols":4,"rows_kept":52,"cut":false,"hidden":false,"merged":[]}
[null,null,null,"使用法"]
[null,"○○○　会則",null,"様式１申込書"]
[null,null,null,"様式２事業計画書A"]
[null,"（名称）",null,"様式２事業計画書B"]
[null,"第１条　この会は、○○○（以下「本会」という。）と称する。",null,"様式３収支予算書"]
[null,null,null,"様式４名簿"]
[null,"（目的）",null,"様式５誓約書"]
[null,"第２条　本会は、食の提供等を通して子どもたちが安心して過ごせる居場所づくりを行うことで、地域で子どもを見守る環境をつくることを目的とする。",null,"様式６補助金交付申込書"]
[]
[null,"（事業）"]
[null,"第３条　本会は、第２条に規定する目的を達成するために次の事業を行う。"]
[null,"　（１）子どもへの食の提供等を通じた居場所づくり"]
[null,"　（２）その他目的達成のために必要な事業"]
[]
[null,"（会員）"]
[null,"第４条　本会の会員は、この会の目的に賛同し、参加する者とする。"]
[]
[null,"（役員の構成及び任期）"]
[null,"第５条　本会に次の役員を置く。役員は会員の中から互選するものとする。"]
[null,"　（１）会長　　　　　　１人"]
[null,"　（２）副会長　　　　　１人"]
[null,"　（３）会計　　　　　　１人"]
[null,"　（４）会計監査　　　　１人"]
[null,"２　役員の任期は２年とする。ただし、再任を妨げない。"]
[]
[null,"（役員の職務）"]
[null,"第６条　会長は、本会を代表し、会務を総括する。"]
[null,"２　副会長は、会長を補佐し、会長に事故あるときはその職務を代理する。"]
[null,"３　会計は、本会の会計を担当する。"]
[null,"４　会計監査は、本会の会計経理を監査する。"]
[]
[null,"　（運営会議）"]
[null,"第７条　本会の運営に関する重要な事項を審議決定するための運営会議を置き、会員の出席をもって開催する。"]
[null,"２　運営会議は会長が招集し、その議長となる。"]
[]
[null,"（事業に関する実施規定）"]
[null,"第８条　第３条に規定する事業の執行に関し必要な事項は、運営会議の議決を得て別に定める。"]
[]
[null,"　（会計）"]
[null,"第９条　本会の経費は、補助金その他の収入金をもって充てる。"]
[null,"２　本会の会計年度は、毎年４月１日に始まり翌年３月３１日に終わる。"]
[null,"３　前項の会計年度に係る決算終了後、監査を経て運営会議にて決算報告を行う。"]
[]
[null,"　（会則の改廃）"]
[null,"第１０条　この会則を改廃しようとするときは、運営会議において同意を得なければならない。"]
[]
[null,"（細則）"]
[null,"第１１条　この会則に定めるもののほか、本会の運営上必要な事項は、運営会議において別に定める。"]
[]
[]
[null,"　　付　則"]
[null,"　　　この会則は、令和○○年○月○日から施行する。"]

{"sheet":"一覧※さわらない","index":9,"n_rows":5,"n_cols":39,"rows_kept":5,"cut":false,"hidden":false,"merged":[[2,31,2,38]]}
[{"$f":"\"令和\"&様式１申込書!$C$10&\"年度　子どもの居場所づくり推進事業　申請団体　審査結果一覧　\"","v":"令和年度　子どもの居場所づくり推進事業　申請団体　審査結果一覧　"}]
[]
["※運営経費への補助基準額：Ａ区分（１回あたり10,000円）Ｂ区分（１回あたり7,000円）Ｃ区分（１回あたり5,500円）",null,null,null,null,null,null,null,"※充実経費への補助基準額：１回あたりの基準額（5,000円・4,000円・3,000円・2,000円・1,000円・0円）から団体が選択し、実施回数を乗じる"]
["NO.","地図番号","実施団体名","名称","実施場所","小学校区","定員","子どもに対する\n準備食数","区分","充実経費区分\n（1回あたりの\n基準額）","代表者氏名","代表者住所","開始月\n(補助金交付後）","開催日時","参加料・協力金","利用者からの問い合わせ先\n（市ホームページなど公開用）","備考","担当者連絡先","書類送付先","書類送付先（〒）","書類送付先（宛名）","上半期実施\n予定回数","下半期実施\n予定回数","年間実施予定回数","基準額","上半期\n支払い額","下半期\n支払い額","運営経費","初期経費","充実経費","交付決定\n補助額","①事業の目的","②取り組み内容","③予算の妥当性","④安全管理の考え方","⑤事業の継続性","⑥活動実績","備考\n（主に事業計画書に記載のない事項で確認をとったもの）","審査結果"]
[1,null,{"$f":"様式１申込書!H6","v":0},{"$f":"様式２事業計画書A!D14","v":0},{"$f":"様式２事業計画書A!E17&\"\n\"&様式２事業計画書A!E18","v":"\n"},{"$f":"様式２事業計画書A!E19&\"\n\"&様式２事業計画書A!J19","v":"\n"},{"$f":"様式２事業計画書A!F27","v":0},{"$f":"様式２事業計画書A!H25","v":0},{"$f":"様式２事業計画書A!J21","v":0},{"$f":"様式２事業計画書B!G69","v":0},{"$f":"様式１申込書!H8","v":0},{"$f":"様式１申込書!H7","v":0},{"$f":"様式２事業計画書A!C29&\"/\"&様式２事業計画書A!F29&\"/\"&様式２事業計画書A!H29","v":"//"},{"$f":"様式２事業計画書A!D32&\"\n\"&様式２事業計画書A!D34","v":"\n"},{"$f":"様式２事業計画書A!B49","v":0},{"$f":"様式２事業計画書A!E36&\"\n(FAX)\"&様式２事業計画書A!E37&\"\n\"&様式２事業計画書A!E38&様式２事業計画書A!I38&様式２事業計画書A!J38&\"\n\"&様式２事業計画書A!E39","v":"\n(FAX)\n＠\n"},null,{"$f":"様式１申込書!B28&\"\n\"&様式１申込書!D30&\"\n\"&様式１申込書!J30&\"\n\"&様式１申込書!B31&様式１申込書!H31&様式１申込書!I31","v":"\n\n\n＠"},{"$f":"様式１申込書!G29","v":0},{"$f":"様式１申込書!C29&様式１申込書!D29&様式１申込書!E29","v":"－"},{"$f":"様式１申込書!B28","v":0},{"$f":"様式２事業計画書B!C6+様式２事業計画書B!C10+様式２事業計画書B!C14+様式２事業計画書B!C18+様式２事業計画書B!C22+様式２事業計画書B!C26","v":0},{"$f":"様式２事業計画書B!C30+様式２事業計画書B!C34+様式２事業計画書B!C38+様式２事業計画書B!C42+様式２事業計画書B!C46+様式２事業計画書B!C50","v":0},{"$f":"様式２事業計画書B!C54","v":0},{"$f":"IFERROR(_xlfn.IFS(様式２事業計画書A!J21=\"A\",10000,様式２事業計画書A!J21=\"B\",7000,様式２事業計画書A!J21=\"C\",5500),0)+様式２事業計画書B!G69","v":0},{"$f":"Y5*V5+AC5","v":0},{"$f":"Y5*W5","v":0},{"$f":"様式２事業計画書B!C62","v":""},{"$f":"様式２事業計画書B!C66","v":0},{"$f":"様式２事業計画書B!C72","v":0},{"$f":"AB5+AC5+AD5","v":{"$error":"#VALUE!"}}]